bitfinex/quotes_BTCUSD_20250211
["timestamp","ask_amount","ask_price","bid_price","bid_amount"]
[1739314489741,0.00244268,95872.0,95871.0,0.15646]
[1739314490007,0.00044268,95872.0,95871.0,0.25896365]
[1739314490413,0.00244268,95872.0,95871.0,0.55736365]
[1739314491569,0.00044268,95872.0,95871.0,0.55736365]
[1739314491960,0.00244268,95872.0,95871.0,0.55836365]
[1739314492163,0.00244268,95872.0,95871.0,0.55736365]
[1739314492575,0.00344268,95872.0,95871.0,0.56336365]
[1739314492772,0.00344268,95872.0,95871.0,0.55736365]
[1739314492946,0.00444268,95872.0,95871.0,0.56436365]
[1739314493176,0.00444268,95872.0,95871.0,0.66252382]
[1739314493517,0.00244268,95872.0,95871.0,0.66252382]
[1739314493917,0.00344268,95872.0,95871.0,0.56436365]
[1739314494327,0.00244268,95872.0,95871.0,0.56436365]
[1739314494764,0.08333811,95891.0,95890.0,0.383129]
[1739314494976,0.08333811,95891.0,95890.0,0.50876633]
[1739314495083,0.08333811,95901.0,95900.0,0.306412]
[1739314495293,0.07728728,95922.0,95900.0,0.30400125]
[1739314495670,0.156374,95924.0,95912.0,0.233093]
[1739314495866,0.156367,95928.0,95915.0,0.156386]
[1739314496078,0.156368,95928.0,95912.0,0.0767]
[1739314496374,0.156364,95930.0,95917.0,0.156383]
[1739314496578,0.20848,95933.0,95913.0,0.10250365]
[1739314496793,0.208455,95944.0,95912.0,0.285224]
[1739314496794,0.156369,95927.0,95915.0,0.156387]
[1739314496989,0.01148885,95936.0,95912.0,0.0767]
[1739314497131,0.01148885,95936.0,95912.0,0.17920365]
[1739314497334,0.156373,95925.0,95912.0,0.25889565]
[1739314497559,0.00769633,95929.0,95900.0,0.151]
[1739314497736,0.156388,95915.0,95902.0,0.156409]
[1739314497975,0.156388,95915.0,95902.0,0.25891265]
[1739314498333,0.156389,95915.0,95902.0,0.10250365]
[1739314498941,0.00769633,95914.0,95902.0,0.25790773]
[1739314499361,0.00769633,95914.0,95903.0,0.156407]
[1739314499563,0.01732639,95914.0,95903.0,0.15540112]
[1739314499763,0.01732639,95914.0,95904.0,0.156405]
[1739314500075,0.01732639,95914.0,95902.0,0.10249873]
[1739314500280,0.00769633,95913.0,95904.0,0.156405]
[1739314500700,0.00769633,95913.0,95904.0,0.15178206]
[1739314501429,0.00963006,95912.0,95904.0,0.15278206]
[1739314502305,0.01732639,95912.0,95905.0,0.156404]
[1739314502507,0.01732639,95912.0,95911.0,0.156394]
[1739314502879,0.00769633,95912.0,95911.0,0.25889765]
[1739314503073,0.01069633,95912.0,95911.0,0.25889765]
[1739314503514,0.00769633,95912.0,95911.0,0.25889765]
[1739314504474,0.02033294,95912.0,95911.0,0.33559765]
[1739314505111,0.02033294,95912.0,95876.0,0.02072855]
[1739314505112,0.01,95902.0,95873.0,0.0001069]
[1739314505320,0.0497,95893.0,95873.0,0.0001069]
[1739314505500,0.01312,95892.0,95873.0,0.00023957]
[1739314505730,0.0497,95893.0,95873.0,0.00023957]
[1739314505905,0.156448,95879.0,95873.0,0.00023957]
[1739314506109,0.208598,95878.0,95873.0,0.00023957]
[1739314506512,0.156447,95879.0,95873.0,0.00023957]
[1739314506651,0.15645,95878.0,95873.0,0.00023957]
[1739314506851,0.15645,95878.0,95873.0,0.00223957]
[1739314507055,0.15645,95878.0,95873.0,0.00123957]
[1739314507257,0.208594,95880.0,95873.0,0.00023957]
[1739314507560,0.013,95879.0,95873.0,0.00123957]
[1739314507983,0.156449,95878.0,95873.0,0.00123957]
[1739314508221,0.00963661,95878.0,95873.0,0.00123957]
[1739314508422,0.01263661,95878.0,95873.0,0.00123957]
[1739314508783,0.00963661,95878.0,95873.0,0.00023957]
[1739314509735,0.01263661,95878.0,95873.0,0.00023957]
[1739314509946,0.00963661,95877.0,95873.0,0.00023957]
[1739314511401,0.00963661,95876.0,95873.0,0.00023957]
[1739314512255,0.00963661,95876.0,95873.0,0.00123957]
[1739314512630,0.00963661,95875.0,95873.0,0.00023957]
[1739314512996,0.00963661,95875.0,95873.0,0.00123957]
[1739314513556,0.00963661,95875.0,95873.0,0.00023957]
[1739314513770,0.01863661,95875.0,95873.0,0.00123957]
[1739314514369,0.00963661,95874.0,95873.0,0.00123957]
[1739314515282,0.00963661,95874.0,95873.0,0.00023957]
[1739314515512,0.00963661,95874.0,95873.0,0.00123957]
[1739314515781,0.01763661,95874.0,95873.0,0.10374322]
[1739314515992,0.01963661,95874.0,95873.0,0.10374322]
[1739314516340,0.01963661,95874.0,95873.0,0.26019922]
[1739314516565,0.01963661,95874.0,95873.0,0.10374322]
[1739314516986,0.01963661,95874.0,95873.0,0.34817354]
[1739314517189,0.01963661,95874.0,95873.0,0.33779922]
[1739314517816,0.01,95874.0,95873.0,0.33779922]
[1739314518150,0.156425,95893.0,95876.0,0.15645]
[1739314518371,0.00963661,95897.0,95877.0,0.10250365]
[1739314518581,0.156421,95895.0,95879.0,0.156446]
[1739314518788,0.156421,95895.0,95880.0,0.10250365]
[1739314518983,0.156423,95894.0,95880.0,0.10250365]
[1739314519190,0.156421,95895.0,95880.0,0.25894865]
[1739314519390,0.012,95893.0,95880.0,0.25894865]
[1739314519588,0.012,95893.0,95880.0,0.10250365]
[1739314519789,0.156421,95895.0,95880.0,0.10250365]
[1739314520013,0.00963661,95893.0,95880.0,0.25894765]
[1739314520421,0.00963661,95893.0,95880.0,0.25894865]
[1739314520626,0.00963661,95893.0,95881.0,0.156443]
[1739314520828,0.00963661,95893.0,95880.0,0.31109565]
[1739314521031,0.00963661,95893.0,95880.0,0.10250365]
[1739314521349,0.00963661,95893.0,95882.0,0.156442]
[1739314521551,0.00963661,95892.0,95881.0,0.156443]
[1739314521852,0.00963661,95892.0,95880.0,0.10350365]
[1739314521994,0.00963661,95892.0,95881.0,0.156443]
[1739314522423,0.00963661,95892.0,95880.0,0.10250365]
[1739314522594,0.00963661,95892.0,95881.0,0.156443]
[1739314522790,0.00963661,95891.0,95881.0,0.156443]
[1739314523362,0.00963661,95891.0,95880.0,0.10350365]
[1739314523541,0.00963661,95891.0,95880.0,0.25994765]
[1739314524142,0.00963661,95890.0,95880.0,0.25994765]
[1739314524314,0.00963661,95890.0,95880.0,0.25894765]
[1739314524515,0.00963661,95890.0,95881.0,0.001]
[1739314525487,0.00963661,95889.0,95881.0,0.001]
[1739314525827,0.00963661,95889.0,95880.0,0.25894765]
[1739314526254,0.00963661,95889.0,95880.0,0.25994765]
[1739314526457,0.00963661,95889.0,95880.0,0.10350365]
[1739314526819,0.00963661,95889.0,95880.0,0.25994865]
[1739314527020,0.00963661,95888.0,95880.0,0.25994865]
[1739314527223,0.00963661,95888.0,95880.0,0.10350365]
[1739314527419,0.00963661,95888.0,95881.0,0.156442]
[1739314527619,0.00963661,95888.0,95882.0,0.156442]
[1739314527883,0.00963661,95888.0,95883.0,0.10250365]
[1739314528082,0.00963661,95888.0,95883.0,0.31109065]
[1739314528309,0.00963661,95887.0,95883.0,0.31109065]
[1739314528506,0.00963661,95887.0,95885.0,0.156435]
[1739314528662,0.00963661,95887.0,95886.0,0.25893865]
[1739314529452,0.004,95888.0,95887.0,0.156434]
[1739314529650,0.004,95888.0,95887.0,0.25893765]
[1739314530546,0.011,95888.0,95887.0,0.25893765]
[1739314530871,0.009,95888.0,95887.0,0.25893765]
[1739314530986,0.00963661,95888.0,95887.0,0.25693765]
[1739314531204,0.01863661,95888.0,95887.0,0.25793765]
[1739314531423,0.02063661,95888.0,95887.0,0.10350365]
[1739314532736,0.02063661,95888.0,95887.0,0.25993765]
[1739314532939,0.02063661,95888.0,95887.0,0.32147678]
[1739314533657,0.01163661,95888.0,95887.0,0.32047678]
[1739314533888,0.00963661,95888.0,95887.0,0.32347678]
[1739314534078,0.00963661,95888.0,95887.0,0.26193765]
[1739314534659,0.00963661,95888.0,95887.0,0.26493765]
[1739314538449,0.00986089,95888.0,95887.0,0.26504445]
[1739314541609,0.00986089,95888.0,95887.0,0.34644445]
[1739314543642,0.00986089,95888.0,95887.0,0.41674445]
[1739314545424,0.00986089,95888.0,95887.0,0.5192481]
[1739314545627,0.00986089,95888.0,95887.0,0.41674445]
[1739314546907,0.00986089,95888.0,95887.0,0.56674445]
[1739314548978,0.00022428,95888.0,95887.0,0.56674445]
[1739314554161,0.00022428,95888.0,95887.0,0.56374445]
[1739314554360,0.00122428,95888.0,95887.0,0.57174445]
[1739314554598,0.00122428,95888.0,95887.0,0.6712481]
[1739314554822,0.00122428,95888.0,95887.0,0.56974445]
[1739314557424,0.00022428,95888.0,95887.0,0.56074445]
[1739314557874,0.00022428,95888.0,95887.0,0.56374445]
[1739314558034,0.00022428,95888.0,95887.0,0.56074445]
[1739314558456,0.00022428,95888.0,95887.0,0.60749318]
[1739314558685,2.8e-07,95888.0,95887.0,0.60749318]
[1739314558897,0.00100028,95888.0,95887.0,0.61949318]
[1739314559302,0.00100028,95888.0,95887.0,1.15439318]
[1739314559975,2.8e-07,95888.0,95887.0,1.14239318]
[1739314560181,2.8e-07,95888.0,95887.0,1.15639318]
[1739314560800,5.6e-07,95890.0,95889.0,0.46693]
[1739314561033,5.6e-07,95890.0,95889.0,0.70447088]
[1739314561233,5.6e-07,95890.0,95889.0,0.71447088]
[1739314562090,5.6e-07,95890.0,95889.0,0.72947088]
[1739314562664,0.00965596,95931.0,95911.0,0.261694]
[1739314562888,0.00965596,95931.0,95911.0,0.36419765]
[1739314563134,0.00965596,95931.0,95911.0,0.55061742]
[1739314563890,0.00965596,95930.0,95911.0,0.55575009]
[1739314565136,0.00965596,95929.0,95911.0,0.55575009]
[1739314565567,0.00965596,95929.0,95911.0,0.60095009]
[1739314565769,0.00965596,95929.0,95911.0,0.60911009]
[1739314565987,0.15,95970.0,95913.0,0.0823]
[1739314566214,0.15633,95951.0,95942.0,0.156343]
[1739314566424,0.00022428,95984.0,95952.0,0.156327]
[1739314566743,0.208404,95968.0,95956.0,0.15632]
[1739314566919,0.02118641,95960.0,95959.0,0.156316]
[1739314567220,0.00022428,95984.0,95959.0,0.156316]
[1739314567221,0.208387,95976.0,95959.0,0.156316]
[1739314567417,0.00066759,95974.0,95957.0,0.10250365]
[1739314567644,0.00066759,95974.0,95965.0,0.156306]
[1739314567820,0.15695959,95974.0,95965.0,0.156305]
[1739314568060,0.00066759,95974.0,95969.0,0.156299]
[1739314568316,0.01196811,95974.0,95965.0,0.10250365]
[1739314568534,0.01196811,95974.0,95966.0,0.156305]
[1739314568766,0.00066759,95974.0,95965.0,0.31091065]
[1739314568988,0.00066759,95974.0,95965.0,0.10250365]
[1739314569196,0.00066759,95974.0,95970.0,0.153298]
[1739314569490,0.00066759,95974.0,95967.0,0.208404]
[1739314569669,0.00066759,95974.0,95970.0,0.156298]
[1739314569882,0.00066759,95974.0,95973.0,0.156293]
[1739314571262,0.00066759,95974.0,95973.0,0.25879665]
[1739314572263,0.00166759,95974.0,95973.0,0.40879665]
[1739314572463,0.00022428,96018.0,95974.0,0.15]
[1739314572599,0.00022428,96018.0,95990.0,0.156264]
[1739314572600,0.00013288,95995.0,95990.0,0.156264]
[1739314572799,0.00013288,95995.0,95977.0,0.208383]
[1739314572995,0.15639088,95995.0,95988.0,0.156268]
[1739314573313,0.00013288,95995.0,95993.0,0.156261]
[1739314573498,0.00013288,95995.0,95994.0,0.156259]
[1739314573699,0.00013288,95995.0,95994.0,0.2135552]
[1739314574100,0.00013288,95995.0,95994.0,0.31605885]
[1739314574704,4.08e-05,95995.0,95994.0,0.31605885]
[1739314577112,4.08e-05,95995.0,95994.0,0.39385885]
[1739314577968,4.08e-05,95995.0,95994.0,0.41685885]
[1739314578171,4.08e-05,95995.0,95994.0,0.56685885]
[1739314579146,4.08e-05,95995.0,95994.0,0.57285885]
[1739314579523,4.08e-05,95995.0,95994.0,0.51656265]
[1739314580440,4.08e-05,95995.0,95994.0,0.56316265]
[1739314581246,8e-07,95995.0,95994.0,0.56316265]
[1739314582291,8e-07,95995.0,95994.0,0.56616265]
[1739314582476,8e-07,95995.0,95994.0,0.58216265]
[1739314582672,8e-07,95995.0,95994.0,0.68319563]
[1739314582855,8e-07,95995.0,95994.0,0.68219563]
[1739314583235,8e-07,95995.0,95994.0,0.68819563]
[1739314583559,8e-07,95995.0,95994.0,0.68219563]
[1739314583756,8e-07,95995.0,95994.0,0.68919563]
[1739314584014,8e-07,95995.0,95994.0,0.67419563]
[1739314584203,8e-07,95995.0,95994.0,0.68919563]
[1739314584825,8e-07,95995.0,95994.0,0.67419563]
[1739314585023,8e-07,95995.0,95994.0,0.68919563]
[1739314586087,8e-07,95995.0,95994.0,0.68930213]
[1739314586438,8e-07,95995.0,95994.0,0.28086915]
[1739314586635,8e-07,95995.0,95994.0,0.12461015]
[1739314586789,8e-07,95995.0,95994.0,0.0221065]
[1739314586790,0.15648246,95995.0,95994.0,0.0221065]
[1739314587555,0.16790209,95995.0,95994.0,0.0221065]
[1739314587778,0.16790209,95995.0,95994.0,0.0071065]
[1739314588049,0.17747977,95995.0,95994.0,0.0171065]
[1739314588263,0.17747977,95995.0,95994.0,0.01610063]
[1739314588463,0.17747977,95995.0,95994.0,0.0001065]
[1739314588673,0.17747977,95995.0,95994.0,0.0011065]
[1739314589912,0.17847977,95995.0,95994.0,0.0021065]
[1739314590114,0.17847977,95995.0,95956.0,0.208426]
[1739314590115,0.15,95994.0,95933.0,0.08333811]
[1739314590319,0.12372542,95995.0,95933.0,0.08333811]
[1739314590320,0.156336,95947.0,95946.0,0.08333811]
[1739314590739,0.156352,95938.0,95933.0,0.08333811]
[1739314590945,0.00957768,95947.0,95933.0,0.08333811]
[1739314591147,0.156347,95940.0,95924.0,0.156373]
[1739314591374,0.208458,95943.0,95918.0,0.208511]
[1739314591570,0.20845,95946.0,95924.0,0.10250365]
[1739314591981,0.156347,95940.0,95924.0,0.10250365]
[1739314592182,0.156347,95940.0,95923.0,0.00044331]
[1739314592183,0.156373,95924.0,95923.0,0.00044331]
[1739314592636,0.156399,95908.0,95889.0,0.0786]
[1739314593005,0.156399,95908.0,95907.0,0.00013208]
[1739314594237,0.156399,95908.0,95871.0,0.08333811]
[1739314594238,0.156427,95891.0,95851.0,0.0002]
[1739314594448,0.156432,95888.0,95861.0,0.156475]
[1739314594654,0.156432,95888.0,95857.0,0.208642]
[1739314594829,0.156432,95888.0,95887.0,0.00023947]
[1739314595426,0.22069163,95888.0,95887.0,0.00023947]
[1739314595627,0.18822277,95888.0,95887.0,0.00023947]
[1739314595954,0.22261038,95888.0,95887.0,0.00023947]
[1739314596523,0.23370542,95888.0,95887.0,0.00023947]
[1739314596724,0.23670542,95888.0,95887.0,0.00023947]
[1739314597538,0.01809504,95888.0,95887.0,0.00023947]
[1739314597795,0.007,95888.0,95887.0,0.25917712]
[1739314598500,0.003,95888.0,95887.0,0.25917712]
[1739314599016,0.004,95888.0,95887.0,0.25917712]
[1739314599199,0.003,95888.0,95887.0,0.25917712]
[1739314599399,0.004,95888.0,95887.0,0.25917712]
[1739314599808,0.00172073,95888.0,95887.0,0.25917712]
[1739314600011,0.00272073,95888.0,95887.0,0.25917712]
[1739314600252,0.001,95888.0,95887.0,0.25917712]
[1739314600700,0.001,95888.0,95887.0,0.32781213]
[1739314601081,0.01634302,95919.0,95906.0,0.156402]
[1739314601239,0.15639,95914.0,95906.0,0.156402]
[1739314601451,0.01634302,95919.0,95887.0,0.17337813]
[1739314601653,0.00022366,95923.0,95890.0,0.15]
[1739314601855,0.156382,95919.0,95911.0,0.156393]
[1739314602110,0.156381,95920.0,95891.0,0.10250365]
[1739314602332,0.01160541,95923.0,95906.0,0.001]
[1739314602725,0.01660541,95923.0,95917.0,0.156384]
[1739314602879,0.17298041,95923.0,95916.0,0.156386]
[1739314603080,0.00022366,95923.0,95907.0,0.208535]
[1739314603306,0.00022366,95923.0,95919.0,0.156381]
[1739314603307,0.004,95920.0,95919.0,0.156381]
[1739314603581,0.004,95920.0,95917.0,0.156383]
[1739314604007,0.0040742,95920.0,95916.0,0.156386]
[1739314604432,0.003,95919.0,95916.0,0.156386]
[1739314604604,0.003,95919.0,95896.0,0.15]
[1739314604812,0.003,95919.0,95888.0,0.15]
[1739314604813,0.003,95919.0,95898.0,0.1272635]
[1739314605017,7.42e-05,95920.0,95916.0,0.156385]
[1739314605234,0.0030742,95920.0,95898.0,0.1272635]
[1739314605595,0.208565,95893.0,95849.0,0.0823]
[1739314605834,0.10250365,95900.0,95852.0,0.00104309]
[1739314605835,0.11062365,95900.0,95852.0,0.00104309]
[1739314606045,0.156439,95884.0,95872.0,0.156458]
[1739314606254,0.156445,95881.0,95873.0,0.156456]
[1739314606883,0.156449,95878.0,95852.0,0.05008611]
[1739314607208,0.01634309,95899.0,95851.0,0.0002]
[1739314607209,0.156491,95852.0,95851.0,0.0002]
[1739314608183,0.156481,95858.0,95851.0,0.0002]
[1739314608390,0.156484,95857.0,95851.0,0.0002]
[1739314608597,0.001,95852.0,95851.0,0.0032]
[1739314608790,0.208631,95863.0,95851.0,0.0032]
[1739314608965,0.156484,95857.0,95851.0,0.03213803]
[1739314609418,0.208633,95862.0,95851.0,0.0002]
[1739314609775,0.156483,95857.0,95851.0,0.0002]
[1739314610182,0.20864,95859.0,95851.0,0.0002]
[1739314610381,0.208633,95862.0,95851.0,0.0002]
[1739314610588,0.001,95858.0,95853.0,0.20865]
[1739314610833,0.001,95858.0,95851.0,0.0022]
[1739314610834,0.156491,95852.0,95851.0,0.0022]
[1739314611261,0.156491,95852.0,95851.0,0.0003066]
[1739314611395,0.156491,95852.0,95851.0,0.0023066]
[1739314612019,0.156491,95852.0,95851.0,0.0003066]
[1739314612222,0.165491,95852.0,95851.0,0.0003066]
[1739314612579,0.171491,95852.0,95851.0,0.0003066]
[1739314612848,0.27399465,95852.0,95851.0,0.0003066]
[1739314613071,0.43547856,95852.0,95851.0,0.0003066]
[1739314613570,0.29132694,95852.0,95839.0,0.0001067]
[1739314613774,0.15651,95840.0,95839.0,0.0001067]
[1739314614984,0.15651,95840.0,95839.0,0.00054938]
[1739314615691,0.16251,95840.0,95839.0,0.00054938]
[1739314616925,0.17391932,95840.0,95839.0,0.00054938]
[1739314617582,0.17891932,95840.0,95839.0,0.00054938]
[1739314619232,0.17891932,95840.0,95810.0,0.208744]
[1739314619233,0.156521,95834.0,95810.0,0.208744]
[1739314619472,0.156556,95812.0,95780.0,0.000254]
[1739314619666,0.156582,95796.0,95780.0,0.000254]
[1739314620069,0.03233514,95795.0,95780.0,0.000254]
[1739314620368,0.06110408,95795.0,95780.0,0.000254]
[1739314620665,0.21768808,95795.0,95780.0,0.000254]
[1739314621010,0.21813221,95795.0,95780.0,0.000254]
[1739314621439,0.156607,95781.0,95780.0,0.000254]
[1739314621682,0.31714914,95781.0,95780.0,0.000254]
[1739314622981,0.01636228,95783.0,95780.0,0.000254]
[1739314623164,0.15,95789.0,95780.0,0.000254]
[1739314623362,0.162607,95781.0,95780.0,0.000254]
[1739314623563,0.006,95781.0,95780.0,0.000254]
[1739314623788,0.208799,95786.0,95780.0,0.000254]
[1739314623967,0.03233514,95781.0,95780.0,0.000254]
[1739314624313,0.005,95781.0,95780.0,0.000254]
[1739314624740,0.156604,95783.0,95780.0,0.000254]
[1739314624957,0.03826281,95786.0,95780.0,0.000254]
[1739314625153,0.03026281,95782.0,95780.0,0.000254]
[1739314625573,0.03076894,95781.0,95780.0,0.000254]
[1739314626004,0.004,95786.0,95785.0,0.1566]
[1739314626206,0.00044413,95795.0,95783.0,0.208805]
[1739314626414,0.20922513,95795.0,95783.0,0.156603]
[1739314626616,0.208783,95793.0,95782.0,0.00640607]
[1739314626901,0.156592,95791.0,95783.0,0.156603]
[1739314627091,0.00044413,95795.0,95785.0,0.156599]
[1739314627268,0.156589,95792.0,95784.0,0.16300607]
[1739314627493,0.007,95791.0,95784.0,0.00640607]
[1739314627682,0.004,95786.0,95784.0,0.16300807]
[1739314627907,0.004,95786.0,95785.0,0.1566]
[1739314628230,0.156587,95793.0,95785.0,0.1566]
[1739314628407,0.156589,95792.0,95784.0,0.00640607]
[1739314628791,0.156589,95792.0,95785.0,0.1566]
[1739314629196,0.004,95786.0,95785.0,0.16300607]
[1739314629414,0.01044413,95795.0,95794.0,0.16299207]
[1739314629648,0.00044413,95795.0,95794.0,0.16299207]
[1739314629926,0.00044413,95795.0,95794.0,0.15499207]
[1739314630503,0.00144413,95795.0,95794.0,0.15499207]
[1739314630887,0.00144413,95795.0,95794.0,0.25149572]
[1739314631090,0.00044413,95795.0,95794.0,0.25149572]
[1739314631453,0.00244413,95795.0,95794.0,0.25149572]
[1739314631737,0.00244413,95795.0,95794.0,0.32709572]
[1739314632575,0.00044413,95795.0,95794.0,0.32709572]
[1739314632780,0.00144413,95795.0,95794.0,0.33409572]
[1739314632986,0.00144413,95795.0,95794.0,0.35709572]
[1739314633187,0.00144413,95795.0,95780.0,0.000254]
[1739314633188,0.08333811,95793.0,95780.0,0.000254]
[1739314633389,0.156607,95781.0,95780.0,0.000254]
[1739314634501,0.156607,95781.0,95780.0,0.001254]
[1739314634697,0.158607,95781.0,95780.0,0.001254]
[1739314635331,0.002,95781.0,95780.0,0.001254]
[1739314635732,0.156607,95781.0,95780.0,0.001254]
[1739314635910,0.158607,95781.0,95780.0,0.001254]
[1739314636113,0.158607,95781.0,95780.0,0.000254]
[1739314636517,0.161607,95781.0,95780.0,0.000254]
[1739314637142,0.158607,95781.0,95780.0,0.000254]
[1739314637464,0.156607,95781.0,95780.0,0.002254]
[1739314637663,0.157607,95781.0,95780.0,0.002254]
[1739314639865,0.001,95781.0,95780.0,0.077854]
[1739314640277,0.001,95781.0,95780.0,0.38486565]
[1739314640754,0.001,95781.0,95780.0,0.46511552]
[1739314641320,0.001,95781.0,95780.0,0.38486565]
[1739314641523,0.00044413,95795.0,95789.0,0.156593]
[1739314641727,0.00044413,95795.0,95790.0,0.10250365]
[1739314641921,0.00044413,95795.0,95791.0,0.208787]
[1739314642123,0.00044413,95795.0,95792.0,0.10250365]
[1739314642304,0.00044413,95795.0,95794.0,0.156586]
[1739314642510,0.00044413,95795.0,95794.0,0.25908965]
[1739314643549,0.00044413,95795.0,95794.0,0.26408965]
[1739314644605,0.00044413,95795.0,95794.0,0.26608965]
[1739314645675,0.00044413,95795.0,95794.0,0.34378965]
[1739314646651,0.00066821,95795.0,95794.0,0.34378965]
[1739314647077,0.00066821,95795.0,95794.0,0.36178965]
[1739314647245,0.00066821,95795.0,95794.0,0.35978965]
[1739314647660,0.00066821,95795.0,95794.0,0.38327588]
[1739314648314,0.00066821,95795.0,95794.0,0.39627588]
[1739314648514,0.00166821,95795.0,95794.0,0.39627588]
[1739314649042,0.00166821,95795.0,95794.0,0.37678965]
[1739314650512,0.00166821,95795.0,95794.0,0.52678965]
[1739314650712,0.00166821,95795.0,95794.0,0.57308965]
[1739314651025,0.00022408,95812.0,95794.0,0.57308965]
[1739314651026,0.00022408,95812.0,95811.0,0.384258]
[1739314651202,0.00022408,95812.0,95811.0,0.50976165]
[1739314651415,0.00022408,95812.0,95811.0,0.60248812]
[1739314651621,0.00022408,95812.0,95811.0,0.50976165]
[1739314652374,0.00122408,95812.0,95811.0,0.51576165]
[1739314653449,0.00222408,95812.0,95811.0,0.53076165]
[1739314655470,0.00222408,95812.0,95811.0,0.57706165]
[1739314657043,0.00222408,95812.0,95811.0,0.021]
[1739314657443,0.15878008,95812.0,95811.0,0.021]
[1739314658228,0.15778008,95812.0,95811.0,0.006]
[1739314658375,0.16639544,95812.0,95811.0,0.007]
[1739314659833,0.16639544,95812.0,95811.0,0.01]
[1739314660549,0.16639544,95812.0,95811.0,0.007]
[1739314660945,0.17239544,95812.0,95811.0,0.008]
[1739314661089,0.00983944,95812.0,95794.0,0.00023937]
[1739314661295,0.156584,95795.0,95794.0,0.00023937]
[1739314662994,0.156584,95795.0,95794.0,0.00123937]
[1739314663196,0.16619936,95795.0,95794.0,0.00123937]
[1739314664210,0.16619936,95795.0,95794.0,0.00023937]
[1739314664832,0.16619936,95795.0,95784.0,0.289303]
[1739314664833,0.156607,95781.0,95780.0,0.0003607]
[1739314666026,0.16622236,95781.0,95780.0,0.0003607]
[1739314666227,0.17222236,95781.0,95780.0,0.0013607]
[1739314667002,0.19357813,95781.0,95780.0,0.0013607]
[1739314667196,0.19357813,95781.0,95760.0,0.156641]
[1739314667197,0.15,95780.0,95743.0,0.0001066]
[1739314667428,0.166667,95744.0,95743.0,0.0001066]
[1739314667637,0.15668,95736.0,95735.0,0.0144611]
[1739314667791,0.172348,95736.0,95735.0,0.0144611]
[1739314667995,0.322348,95736.0,95735.0,0.0144611]
[1739314668194,0.30668,95736.0,95735.0,0.0144611]
[1739314668801,0.30681301,95736.0,95735.0,0.0144611]
[1739314669003,0.15669,95730.0,95719.0,0.156708]
[1739314669206,0.20891,95735.0,95719.0,0.10250365]
[1739314669443,0.156694,95728.0,95719.0,0.10250365]
[1739314669610,0.156686,95733.0,95716.0,0.00051128]
[1739314669828,0.00613301,95736.0,95717.0,0.10250365]
[1739314670046,0.00613301,95736.0,95726.0,0.156696]
[1739314670250,0.00613301,95736.0,95719.0,0.00051128]
[1739314670251,0.156682,95735.0,95719.0,0.00051128]
[1739314670458,0.00613301,95736.0,95719.0,0.00051128]
[1739314670659,0.00013301,95736.0,95720.0,0.208942]
[1739314671082,0.001,95735.0,95724.0,0.156698]
[1739314671241,0.001,95735.0,95724.0,0.00044413]
[1739314671644,0.156686,95733.0,95724.0,0.00044413]
[1739314671843,0.001,95736.0,95724.0,0.15714313]
[1739314672302,0.156682,95735.0,95724.0,0.00044413]
[1739314672843,0.001,95735.0,95724.0,0.15714313]
[1739314673026,0.157682,95735.0,95724.0,0.00044413]
[1739314673176,0.001,95735.0,95724.0,0.00044413]
[1739314673377,0.156698,95726.0,95724.0,0.00044413]
[1739314674165,0.01907793,95725.0,95724.0,0.00044413]
[1739314675397,0.06668557,95725.0,95724.0,0.00044413]
[1739314675604,0.06668557,95725.0,95715.0,0.0001066]
[1739314675809,0.156713,95716.0,95715.0,0.0001066]
[1739314676535,0.156733,95704.0,95703.0,7e-05]
[1739314676945,0.0007,95698.0,95665.0,0.00051128]
[1739314677102,0.156812,95656.0,95641.0,0.156836]
[1739314677305,0.209086,95654.0,95629.0,0.20914]
[1739314677505,0.209086,95654.0,95613.0,0.209176]
[1739314677506,0.209091,95652.0,95619.0,0.00051128]
[1739314677730,0.209091,95652.0,95611.0,0.0102]
[1739314677731,0.06952581,95653.0,95611.0,0.0002]
[1739314677931,0.04810545,95662.0,95611.0,0.0002]
[1739314677932,0.156851,95633.0,95611.0,0.0002]
[1739314678135,0.426086,95632.0,95628.0,0.0001067]
[1739314678336,0.426086,95632.0,95600.0,0.00022111]
[1739314678683,0.15,95622.0,95619.0,0.0001067]
[1739314678832,0.16,95620.0,95619.0,0.0001067]
[1739314679039,0.156941,95577.0,95575.0,0.00016069]
[1739314679252,0.00848161,95576.0,95575.0,0.00016069]
[1739314679457,0.156943,95576.0,95575.0,0.00016069]
[1739314679663,0.156943,95576.0,95554.0,0.0459]
[1739314679664,0.14044887,95576.0,95568.0,0.05833639]
[1739314679868,0.14044887,95576.0,95570.0,0.156952]
[1739314679869,0.11991938,95576.0,95570.0,0.156952]
[1739314680074,0.11991938,95576.0,95568.0,0.04291657]
[1739314680075,0.02119936,95575.0,95568.0,0.04291657]
[1739314680276,0.156953,95570.0,95568.0,0.04291657]
[1739314680473,0.15697,95560.0,95540.0,0.157002]
[1739314680680,0.15,95574.0,95541.0,0.209333]
[1739314680883,0.10250365,95574.0,95525.0,0.18632962]
[1739314681079,0.25250365,95573.0,95526.0,0.10250365]
[1739314681286,0.11991938,95559.0,95526.0,0.31186965]
[1739314681436,0.10250365,95558.0,95500.0,0.013161]
[1739314681656,0.01640124,95555.0,95500.0,0.023161]
[1739314681887,0.01640124,95555.0,95529.0,0.00051128]
[1739314682089,0.02092932,95534.0,95481.0,0.13595484]
[1739314682316,0.02092932,95534.0,95473.0,0.0001068]
[1739314682520,0.10250365,95533.0,95489.0,0.08333811]
[1739314682682,0.10250365,95533.0,95509.0,0.157052]
[1739314682881,0.209362,95528.0,95490.0,0.12316401]
[1739314683093,0.157028,95525.0,95505.0,0.157058]
[1739314683343,0.10250365,95524.0,95490.0,0.10250365]
[1739314683596,0.15703,95523.0,95503.0,0.157061]
[1739314683816,0.10250365,95523.0,95521.0,0.00051128]
[1739314684028,0.00044413,95524.0,95523.0,0.15754128]
[1739314684248,0.00044413,95524.0,95523.0,0.00051128]
[1739314684451,0.00044413,95524.0,95523.0,0.15754128]
[1739314684661,0.01062697,95525.0,95506.0,0.15]
[1739314684915,0.00385755,95525.0,95524.0,0.14443334]
[1739314685122,0.02598319,95580.0,95556.0,0.156976]
[1739314685123,0.01211924,95580.0,95556.0,0.156976]
[1739314685353,0.209225,95591.0,95534.0,0.209349]
[1739314685561,0.03860222,95594.0,95533.0,0.0459]
[1739314685562,0.10250365,95581.0,95535.0,0.10250365]